fUSD/lending_fUSD_20260217
["ID","MTS","AMOUNT","RATE_DAILY","PERIOD"]
[405794424,1771315841856,-3888.0,0.00010179,2]
[405794425,1771315841866,-498.26652801,0.00010233,2]
[405794426,1771315841877,-546.0,0.00010233,2]
[405794427,1771315841887,-458.0,0.00010233,2]
[405794428,1771315841897,-500.0,0.00010233,2]
[405794429,1771315841906,-799.0,0.00010233,2]
[405794430,1771315841915,-3888.0,0.00010233,2]
[405794431,1771315841925,-546.0,0.00010288,2]
[405794432,1771315841935,-458.0,0.00010288,2]
[405794433,1771315841945,-500.0,0.00010288,2]
[405794434,1771315841954,-799.0,0.00010288,2]
[405794435,1771315841963,-3888.0,0.00010288,2]
[405794436,1771315841973,-180.0,0.00010325,2]
[405794437,1771315841982,-587.0,0.00010325,2]
[405794438,1771315841992,-433.0,0.00010325,2]
[405794439,1771315842001,-587.0,0.00010325,2]
[405794440,1771315842010,-2351.0,0.00010325,2]
[405794441,1771315842020,-147515.91,0.00010332,2]
[405794442,1771315842029,-546.0,0.00010343,2]
[405794443,1771315842039,-500.0,0.00010343,2]
[405794444,1771315842048,-458.0,0.00010343,2]
[405794445,1771315842062,-799.0,0.00010343,2]
[405794446,1771315842071,-3888.0,0.00010343,2]
[405794447,1771315842080,-546.0,0.00010398,2]
[405794448,1771315842090,-390.80031656,0.00010398,2]
[405794449,1771315842100,-458.0,0.00010398,2]
[405794450,1771315842109,-799.0,0.00010398,2]
[405794451,1771315842119,-3888.0,0.00010398,2]
[405794452,1771315842128,-500.0,0.00010452,2]
[405794453,1771315842137,-546.0,0.00010453,2]
[405794454,1771315842147,-458.0,0.00010453,2]
[405794455,1771315842156,-799.0,0.00010453,2]
[405794456,1771315842166,-3888.0,0.00010453,2]
[405794457,1771315842175,-29999.99,0.00010475,2]
[405794458,1771315842185,-2823.55,0.00010475,2]
[405794459,1771315842194,-546.0,0.00010507,2]
[405794460,1771315842205,-458.0,0.00010507,2]
[405794461,1771315842214,-799.0,0.00010507,2]
[405794462,1771315842223,-3888.0,0.00010507,2]
[405794463,1771315842232,-200.0,0.00010548,2]
[405794465,1771315842241,-500.0,0.00010548,2]
[405794467,1771315842250,-200.0,0.00010548,2]
[405794469,1771315842259,-546.0,0.00010562,2]
[405794471,1771315842269,-458.0,0.00010562,2]
[405794474,1771315842278,-799.0,0.00010562,2]
[405794476,1771315842287,-3888.0,0.00010562,2]
[405794477,1771315842296,-546.0,0.00010617,2]
[405794479,1771315842306,-458.0,0.00010617,2]
[405794480,1771315842315,-799.0,0.00010617,2]
[405794481,1771315842324,-3888.0,0.00010617,2]
[405794482,1771315842333,-546.0,0.00010672,2]
[405794483,1771315842342,-458.0,0.00010672,2]
[405794484,1771315842351,-799.0,0.00010672,2]
[405794485,1771315842360,-3888.0,0.00010672,2]
[405794486,1771315842370,-500.0,0.00010726,2]
[405794487,1771315842379,-546.0,0.00010726,2]
[405794488,1771315842388,-458.0,0.00010726,2]
[405794489,1771315842397,-799.0,0.00010726,2]
[405794490,1771315842407,-3888.0,0.00010726,2]
[405794491,1771315842416,-164.61380668,0.00010779,2]
[405794492,1771315842425,-500.0,0.00010779,2]
[405794493,1771315842435,-500.81972658,0.00010779,2]
[405794494,1771315842443,-160.37289206,0.00010779,2]
[405794495,1771315842453,-239.8459294,0.00010779,2]
[405794496,1771315842462,-500.0,0.00010779,2]
[405794498,1771315842471,-503.06752739,0.00010779,2]
[405794500,1771315842481,-501.16029055,0.00010779,2]
[405794502,1771315842495,-500.0,0.00010779,2]
[405794504,1771315842504,-500.0,0.00010779,2]
[405794505,1771315842513,-500.0,0.00010779,2]
[405794507,1771315842522,-500.0,0.00010779,2]
[405794510,1771315842531,-502.12798245,0.00010779,2]
[405794512,1771315842541,-500.0,0.00010779,2]
[405794515,1771315842550,-558.2655769,0.00010781,2]
[405794517,1771315842561,-478.26030593,0.00010781,2]
[405794519,1771315842571,-822.15179644,0.00010781,2]
[405794522,1771315842581,-3900.729734,0.00010781,2]
[405794525,1771315842591,-5300.13656816,0.000109,2]
[405794527,1771315842602,-5300.13656815,0.000109,2]
[405794529,1771315842611,-1000.0,0.0001094,2]
[405794530,1771315842620,-500.0,0.00010959,2]
[405794531,1771315842629,-226.88409827,0.00010959,2]
[405794532,1771315842637,-500.0,0.00011,2]
[405794533,1771315842647,-204.77373083,0.00011,2]
[405794534,1771315842656,-885.17558433,0.00011089,2]
[405794535,1771315842665,-200.0,0.00011096,2]
[405794536,1771315842674,-500.0,0.00011096,2]
[405794537,1771315842683,-200.0,0.00011096,2]
[405794538,1771315842692,-27570.95193888,0.00011099,2]
[405794539,1771315842702,-27570.95193881,0.00011099,2]
[405794540,1771315842711,-27570.95193881,0.00011099,2]
[405794541,1771315842721,-27570.95193881,0.00011099,2]
[405794542,1771315842730,-27570.95193881,0.00011099,2]
[405794543,1771315842740,-27570.95193881,0.00011099,2]
[405794544,1771315842750,-27570.95193881,0.00011099,2]
[405794545,1771315842759,-27570.95193881,0.00011099,2]
[405794546,1771315842769,-27570.95193881,0.00011099,2]
[405794547,1771315842778,-27570.95193881,0.00011099,2]
[405794548,1771315842787,-8410.50865546,0.00011099,2]
[405794549,1771315842797,-8410.50865541,0.00011099,2]
[405794550,1771315842809,-8410.50865541,0.00011099,2]
[405794551,1771315842819,-8410.50865541,0.00011099,2]
[405794552,1771315842828,-8410.50865541,0.00011099,2]
[405794553,1771315842838,-8410.50865541,0.00011099,2]
[405794554,1771315843060,-8410.50865541,0.00011099,2]
[405794555,1771315843071,-8410.50865541,0.00011099,2]
[405794556,1771315843081,-8410.50865541,0.00011099,2]
[405794557,1771315843090,-8410.50865541,0.00011099,2]
[405794558,1771315843100,-5300.13656815,0.00011156,2]
[405794559,1771315843111,-898.32890406,0.00011225,2]
[405794560,1771315843121,-8552.59,0.00011233,2]
[405794561,1771315843131,-255.16,0.00011233,2]
[405794562,1771315843141,-500.0,0.00011274,2]
[405794563,1771315843150,-250.0,0.00011275,2]
[405794564,1771315843163,-500.97291215,0.00011327,2]
[405794565,1771315843172,-1000.0,0.00011327,2]
[405794566,1771315843182,-1000.0,0.00011327,2]
[405794567,1771315843191,-643.23767655,0.00011327,2]
[405794568,1771315843200,-502.71949542,0.00011327,2]
[405794569,1771315843210,-1000.0,0.00011327,2]
[405794570,1771315843219,-1000.0,0.00011327,2]
[405794571,1771315843229,-823.0,0.00011358,2]
[405794572,1771315843238,-736.0,0.00011358,2]
[405794573,1771315843248,-3292.0,0.00011358,2]
[405794574,1771315843258,-823.0,0.00011358,2]
[405794575,1771315843267,-500.0,0.00011548,2]
[405794576,1771315843276,-200.0,0.00011644,2]
[405794577,1771315843286,-500.0,0.00011644,2]
[405794578,1771315843295,-200.0,0.00011644,2]
[405794579,1771315843304,-500.0,0.00011822,2]
[405794580,1771315843315,-1500.0,0.00011875,2]
[405794581,1771315843324,-1500.0,0.00011875,2]
[405794582,1771315843334,-1500.0,0.00011875,2]
[405794583,1771315843343,-1500.0,0.00011875,2]
[405794584,1771315843353,-175.52034071,0.000119,2]
[405794585,1771315843362,-1000.0,0.00012034,2]
[405794586,1771315843371,-500.0,0.00012096,2]
[405794587,1771315843381,-200.0,0.00012192,2]
[405794588,1771315843390,-500.0,0.00012192,2]
[405794589,1771315843399,-200.0,0.00012192,2]
[405794590,1771315843409,-500.0,0.0001237,2]
[405794591,1771315843419,-1799.80965345,0.00012423,2]
[405794592,1771315843429,-368.72151799,0.00012423,2]
[405794593,1771315843438,-2000.0,0.00012423,2]
[405794594,1771315843448,-2000.0,0.00012423,2]
[405794595,1771315843457,-1252.0,0.00012492,2]
[405794597,1771315843467,-1152.0,0.00012493,2]
[405794598,1771315843476,-1152.0,0.00012493,2]
[405794599,1771315843485,-4609.0,0.00012493,2]
[405794601,1771315843496,-5300.13656815,0.00012505,2]
[405794603,1771315843506,-2516.71,0.0001253,2]
[405794605,1771315843516,-500.0,0.00012644,2]
[405794606,1771315843525,-201.41552809,0.0001274,2]
[405794607,1771315843535,-503.55960548,0.0001274,2]
[405794608,1771315843546,-201.77822118,0.0001274,2]
[405794609,1771315843555,-107138.0,0.000129,2]
[405794610,1771315843565,-325.66480715,0.00012918,2]
[405794611,1771315843577,-502.39964348,0.00012971,2]
[405794612,1771315843586,-2500.0,0.00012971,2]
[405794613,1771315843595,-1000.0,0.00013128,2]
[405794614,1771315843605,-1563.90389462,0.0001318,2]
[405794615,1771315843614,-5519.99513015,0.0001318,2]
[405794616,1771315843625,-5530.0,0.000133,3]
[405794617,1771315843635,-3240.0,0.00013425,2]
[405794618,1771315843646,-3000.0,0.00013519,2]
[405794619,1771315843656,-500.0,0.00013698,2]
[405794620,1771315843669,-500.0,0.00013698,2]
[405794621,1771315843679,-500.0,0.00013698,2]
[405794622,1771315843689,-500.0,0.00013698,2]
[405794623,1771315843698,-500.0,0.00013698,2]
[405794624,1771315843708,-500.0,0.00013698,2]
[405794625,1771315843718,-500.0,0.00013698,2]
[405794626,1771315843728,-500.0,0.00013698,2]
[405794627,1771315843737,-500.0,0.00013698,2]
[405794628,1771315843746,-500.0,0.00013698,2]
[405794629,1771315843756,-500.0,0.00013698,2]
[405794630,1771315843766,-500.0,0.00013698,2]
[405794631,1771315843776,-500.0,0.00013698,2]
[405794632,1771315843786,-500.0,0.00013698,2]
[405794633,1771315843795,-500.0,0.00013698,2]
[405794634,1771315843804,-500.0,0.00013698,2]
[405794635,1771315843815,-500.0,0.00013698,2]
[405794636,1771315843824,-500.0,0.00013698,2]
[405794637,1771315843832,-500.0,0.00013698,2]
[405794638,1771315843841,-500.0,0.00013698,2]
[405794639,1771315843850,-500.0,0.00013698,2]
[405794640,1771315843858,-500.0,0.00013698,2]
[405794641,1771315843868,-500.0,0.00013698,2]
[405794642,1771315843877,-500.0,0.00013698,2]
[405794643,1771315843886,-500.0,0.00013698,2]
[405794644,1771315843895,-500.0,0.00013698,2]
[405794645,1771315843905,-500.0,0.00013698,2]
[405794646,1771315843915,-500.0,0.00013698,2]
[405794647,1771315843924,-500.0,0.00013698,2]
[405794648,1771315843933,-505.24249427,0.00013698,2]
[405794649,1771315843941,-506.79858148,0.00013698,2]
[405794650,1771315843950,-535.55684817,0.00013698,2]
[405794651,1771315843959,-500.0,0.00013698,2]
[405794652,1771315843967,-500.0,0.00013698,2]
[405794653,1771315843976,-500.0,0.00013698,2]
[405794654,1771315843985,-500.0,0.00013698,2]
[405794655,1771315843995,-500.0,0.00013698,2]
[405794656,1771315844005,-500.0,0.00013698,2]
[405794657,1771315844015,-500.0,0.00013698,2]
[405794658,1771315844024,-500.0,0.00013698,2]
[405794659,1771315844035,-500.0,0.00013698,2]
[405794660,1771315844044,-500.0,0.00013698,2]
[405794661,1771315844054,-391.46615766,0.00013698,2]
[405794662,1771315844065,-500.0,0.00013698,2]
[405794663,1771315844075,-500.0,0.00013698,2]
[405794664,1771315844085,-500.0,0.00013698,2]
[405794665,1771315844095,-639.90682726,0.00013698,2]
[405794666,1771315844105,-679.08,0.00013698,2]
[405794667,1771315844115,-679.08,0.00013698,2]
[405794668,1771315844124,-679.08,0.00013698,2]
[405794669,1771315844134,-679.08,0.00013698,2]
[405794670,1771315844144,-679.08,0.00013698,2]
[405794671,1771315844153,-679.08,0.00013698,2]
[405794672,1771315844163,-679.08,0.00013698,2]
[405794673,1771315844173,-679.08,0.00013698,2]
[405794674,1771315844183,-679.08,0.00013698,2]
[405794675,1771315844192,-679.08,0.00013698,2]
[405794676,1771315844201,-679.08,0.00013698,2]
[405794677,1771315844211,-679.08,0.00013698,2]
[405794678,1771315844220,-679.08,0.00013698,2]
[405794679,1771315844230,-679.08,0.00013698,2]
[405794680,1771315844240,-679.08,0.00013698,2]
[405794681,1771315844250,-679.08,0.00013698,2]
[405794682,1771315844259,-679.08,0.00013698,2]
[405794683,1771315844270,-679.08,0.00013698,2]
[405794684,1771315844279,-679.08,0.00013698,2]
[405794685,1771315844289,-679.08,0.00013698,2]
[405794686,1771315844298,-679.08,0.00013698,2]
[405794687,1771315844308,-679.08,0.00013698,2]
[405794688,1771315844318,-679.08,0.00013698,2]
[405794689,1771315844328,-679.22619195,0.00013698,2]
[405794690,1771315844338,-349.69131006,0.00013698,2]
[405794691,1771315844347,-1015.72,0.00013698,2]
[405794692,1771315844357,-1015.72,0.00013698,2]
[405794693,1771315844366,-1015.72,0.00013698,2]
[405794694,1771315844376,-1015.72,0.00013698,2]
[405794695,1771315844386,-1015.72,0.00013698,2]
[405794696,1771315844396,-1015.72,0.00013698,2]
[405794697,1771315844405,-1015.72,0.00013698,2]
[405794698,1771315844414,-1015.72,0.00013698,2]
[405794699,1771315844424,-1015.72,0.00013698,2]
[405794700,1771315844433,-1015.72,0.00013698,2]
[405794701,1771315844443,-1015.72,0.00013698,2]
[405794702,1771315844452,-1015.72,0.00013698,2]
[405794703,1771315844462,-1015.72,0.00013698,2]
[405794704,1771315844472,-1015.72,0.00013698,2]
[405794705,1771315844481,-1015.72,0.00013698,2]
[405794706,1771315844491,-1015.72,0.00013698,2]
[405794707,1771315844505,-1015.72,0.00013698,2]
[405794708,1771315844515,-1015.72,0.00013698,2]
[405794709,1771315844524,-1015.72,0.00013698,2]
[405794710,1771315844535,-1015.72,0.00013698,2]
[405794711,1771315844545,-1015.72,0.00013698,2]
[405794712,1771315844554,-1015.72,0.00013698,2]
[405794713,1771315844565,-1015.72,0.00013698,2]
[405794714,1771315844575,-1015.84,0.00013698,2]
[405794715,1771315844585,-456.05800986,0.00013698,2]
[405794716,1771315844594,-500.0,0.00013698,2]
[405794717,1771315844604,-500.0,0.00013698,2]
[405794718,1771315844614,-500.0,0.00013698,2]
[405794719,1771315844623,-500.0,0.00013698,2]
[405794720,1771315844632,-511.5660924,0.00013698,2]
[405794721,1771315844642,-500.0,0.00013698,2]
[405794722,1771315844651,-500.0,0.00013698,2]
[405794723,1771315844661,-500.0,0.00013698,2]
[405794724,1771315844670,-500.0,0.00013698,2]
[405794725,1771315844680,-500.0,0.00013698,2]
[405794726,1771315844690,-500.0,0.00013698,2]
[405794727,1771315844700,-500.0,0.00013698,2]
[405794728,1771315844709,-500.0,0.00013698,2]
[405794729,1771315844719,-500.0,0.00013698,2]
[405794730,1771315844728,-500.0,0.00013698,2]
[405794731,1771315844738,-430.55674509,0.00013698,2]
[405794732,1771315844747,-529.40507312,0.00013698,2]
[405794733,1771315844757,-915.21,0.00013698,2]
[405794734,1771315844767,-915.21,0.00013698,2]
[405794735,1771315844777,-915.21,0.00013698,2]
[405794736,1771315844787,-915.21,0.00013698,2]
[405794737,1771315844797,-915.21,0.00013698,2]
[405794738,1771315844806,-915.21,0.00013698,2]
[405794739,1771315844816,-915.21,0.00013698,2]
[405794740,1771315844826,-915.21,0.00013698,2]
[405794741,1771315844835,-915.21,0.00013698,2]
[405794742,1771315844845,-915.21,0.00013698,2]
[405794743,1771315844854,-915.21,0.00013698,2]
[405794744,1771315844864,-915.21,0.00013698,2]
[405794745,1771315844873,-915.21,0.00013698,2]
[405794746,1771315844883,-915.21,0.00013698,2]
[405794747,1771315844892,-915.21,0.00013698,2]
[405794748,1771315844902,-915.21,0.00013698,2]
[405794749,1771315844913,-915.21,0.00013698,2]
[405794750,1771315844923,-915.21,0.00013698,2]
[405794751,1771315844932,-915.21,0.00013698,2]
[405794752,1771315844941,-915.21,0.00013698,2]
[405794753,1771315844951,-915.21,0.00013698,2]
[405794754,1771315844960,-915.21,0.00013698,2]
[405794755,1771315844970,-915.21,0.00013698,2]
[405794756,1771315844980,-915.2263384,0.00013698,2]
[405794757,1771315844990,-500.0,0.00013698,2]
[405794758,1771315845000,-500.0,0.00013698,2]
[405794759,1771315845009,-500.0,0.00013698,2]
[405794760,1771315845019,-500.0,0.00013698,2]
[405794761,1771315845028,-500.0,0.00013698,2]
[405794762,1771315845038,-500.0,0.00013698,2]
[405794763,1771315845048,-500.0,0.00013698,2]
[405794764,1771315845057,-500.0,0.00013698,2]
[405794765,1771315845068,-500.0,0.00013698,2]
[405794766,1771315845077,-500.0,0.00013698,2]
[405794767,1771315845087,-500.0,0.00013698,2]
[405794768,1771315845096,-500.0,0.00013698,2]
[405794769,1771315845106,-500.0,0.00013698,2]
[405794770,1771315845115,-500.0,0.00013698,2]
[405794771,1771315845125,-500.0,0.00013698,2]
[405794772,1771315845135,-500.0,0.00013698,2]
[405794773,1771315845144,-500.0,0.00013698,2]
[405794774,1771315845154,-500.0,0.00013698,2]
[405794775,1771315845163,-596.80603134,0.00013698,2]
[405794776,1771315845172,-307.44205355,0.00013698,2]
[405794777,1771315845182,-500.0,0.00013698,2]
[405794778,1771315845191,-500.0,0.00013698,2]
[405794779,1771315845200,-500.0,0.00013698,2]
[405794780,1771315845210,-500.0,0.00013698,2]
[405794781,1771315845219,-500.0,0.00013698,2]
[405794782,1771315845229,-500.0,0.00013698,2]
[405794783,1771315845238,-500.0,0.00013698,2]
[405794784,1771315845247,-500.0,0.00013698,2]
[405794785,1771315845257,-500.0,0.00013698,2]
[405794786,1771315845266,-500.0,0.00013698,2]
[405794787,1771315845275,-500.0,0.00013698,2]
[405794788,1771315845285,-500.0,0.00013698,2]
[405794790,1771315845295,-500.0,0.00013698,2]
[405794792,1771315845304,-500.0,0.00013698,2]
[405794794,1771315845315,-286.9609652,0.00013698,2]
[405794796,1771315845324,-503.24510855,0.00013698,2]
[405794798,1771315845333,-500.0,0.00013698,2]
[405794800,1771315845343,-500.0,0.00013698,2]
[405794802,1771315845352,-500.0,0.00013698,2]
[405794803,1771315845361,-500.0,0.00013698,2]
[405794804,1771315845370,-500.0,0.00013698,2]
[405794805,1771315845450,-500.0,0.00013698,2]
[405794806,1771315845459,-500.0,0.00013698,2]
[405794807,1771315845468,-500.0,0.00013698,2]
[405794808,1771315845478,-500.0,0.00013698,2]
[405794809,1771315845488,-500.0,0.00013698,2]
[405794810,1771315845500,-500.0,0.00013698,2]
[405794811,1771315845510,-500.0,0.00013698,2]
[405794812,1771315845519,-500.0,0.00013698,2]
[405794813,1771315845528,-500.0,0.00013698,2]
[405794814,1771315845538,-500.0,0.00013698,2]
[405794815,1771315845547,-500.0,0.00013698,2]
[405794816,1771315845556,-205.75338066,0.00013698,2]
[405794817,1771315845565,-500.0,0.00013698,2]
[405794818,1771315845575,-500.0,0.00013698,2]
[405794819,1771315845584,-500.0,0.00013698,2]
[405794820,1771315845593,-161.76553767,0.00013698,2]
[405794821,1771315845603,-500.0,0.00013698,2]
[405794822,1771315845612,-500.0,0.00013698,2]
[405794823,1771315845621,-400.27334963,0.00013698,2]
[405794824,1771315845630,-500.0,0.00013698,2]
[405794825,1771315845640,-500.0,0.00013698,2]
[405794826,1771315845649,-500.0,0.00013698,2]
[405794827,1771315845659,-500.0,0.00013698,2]
[405794828,1771315845668,-500.0,0.00013698,2]
[405794829,1771315845677,-500.0,0.00013698,2]
[405794830,1771315845687,-500.0,0.00013698,2]
[405794832,1771315845696,-500.0,0.00013698,2]
[405794834,1771315845706,-500.0,0.00013698,2]
[405794836,1771315845715,-500.0,0.00013698,2]
[405794838,1771315845725,-500.0,0.00013698,2]
[405794839,1771315845734,-500.0,0.00013698,2]
[405794841,1771315845744,-500.0,0.00013698,2]
[405794843,1771315845753,-500.0,0.00013698,2]
[405794845,1771315845763,-500.0,0.00013698,2]
[405794848,1771315845772,-500.0,0.00013698,2]
[405794850,1771315845781,-500.0,0.00013698,2]
[405794851,1771315845791,-500.0,0.00013698,2]
[405794853,1771315845800,-500.0,0.00013698,2]
[405794855,1771315845810,-500.0,0.00013698,2]
[405794857,1771315845819,-500.0,0.00013698,2]
[405794860,1771315845829,-500.0,0.00013698,2]
[405794862,1771315845838,-500.0,0.00013698,2]
[405794864,1771315845848,-388.47570654,0.00013698,2]
[405794866,1771315845857,-500.0,0.00013698,2]
[405794867,1771315845867,-500.0,0.00013698,2]
[405794868,1771315845876,-500.0,0.00013698,2]
[405794869,1771315845885,-500.0,0.00013698,2]
[405794870,1771315845895,-500.0,0.00013698,2]
[405794871,1771315845904,-500.0,0.00013698,2]
[405794872,1771315845914,-500.0,0.00013698,2]
[405794873,1771315845923,-500.0,0.00013698,2]
[405794874,1771315845933,-500.0,0.00013698,2]
[405794876,1771315845943,-500.0,0.00013698,2]
[405794878,1771315845952,-500.0,0.00013698,2]
[405794880,1771315845962,-197.6651859,0.00013698,2]
[405794882,1771315845972,-500.0,0.00013698,2]
[405794883,1771315845981,-500.0,0.00013698,2]
[405794884,1771315845991,-500.0,0.00013698,2]
[405794885,1771315846000,-500.0,0.00013698,2]
[405794886,1771315846009,-500.0,0.00013698,2]
[405794887,1771315846019,-522.2154278,0.00013698,2]
[405794888,1771315846028,-500.0,0.00013698,2]
[405794889,1771315846037,-500.0,0.00013698,2]
[405794890,1771315846047,-500.0,0.00013698,2]
[405794891,1771315846056,-500.0,0.00013698,2]
[405794892,1771315846066,-500.0,0.00013698,2]
[405794893,1771315846075,-500.0,0.00013698,2]
[405794894,1771315846085,-500.0,0.00013698,2]
[405794895,1771315846094,-500.0,0.00013698,2]
[405794896,1771315846103,-500.0,0.00013698,2]
[405794897,1771315846112,-500.0,0.00013698,2]
[405794898,1771315846121,-500.0,0.00013698,2]
[405794899,1771315846131,-500.0,0.00013698,2]
[405794900,1771315846140,-500.0,0.00013698,2]
[405794901,1771315846149,-500.0,0.00013698,2]
[405794902,1771315846158,-500.0,0.00013698,2]
[405794903,1771315846168,-500.0,0.00013698,2]
[405794904,1771315846177,-500.0,0.00013698,2]
[405794905,1771315846187,-200.0,0.00013699,2]
[405794906,1771315846196,-712.99,0.00013699,2]
[405794907,1771315846207,-151.02878078,0.00013699,2]
[405794908,1771315846216,-5530.0,0.000137,5]
[405794909,1771315846225,-469.0,0.00013743,2]
[405794910,1771315846235,-1613.0,0.00013743,2]
[405794911,1771315846244,-6453.0,0.00013743,2]
[405794912,1771315846253,-2129.0,0.00013747,2]
[405794913,1771315846262,-5300.13656815,0.00013854,2]
[405794914,1771315846272,-846.3153877,0.00014067,2]
[405794915,1771315846286,-6155.062938,0.00014108,7]
[405794916,1771315846295,-2658.558404,0.00014108,7]
[405794917,1771315846305,-391.49,0.00014266,2]
[405794918,1771315846314,-151.0,0.00014634,2]
[405794919,1771315846324,-151.0,0.00014634,2]
[405794920,1771315846333,-151.0,0.00014634,2]
[405794921,1771315846342,-1000.0,0.00014884,7]
[405794922,1771315846352,-1974.0,0.00015117,2]
[405794923,1771315846362,-9035.0,0.00015117,2]
[405794924,1771315846372,-160.0,0.00015134,2]
[405794925,1771315846382,-173.57638878,0.00015134,2]
[405794926,1771315846391,-5300.13656815,0.00015203,2]
[405794927,1771315846402,-306.51422453,0.00015312,2]
[405794928,1771315846411,-484.11558281,0.00015325,2]
[405794929,1771315846421,-241.70774661,0.00015527,2]
[405794930,1771315846430,-337.87,0.00015641,2]
[405794931,1771315846440,-484.11558281,0.00015708,2]
[405794932,1771315846449,-5000.0,0.0001596,2]
[405794933,1771315846459,-160.57318335,0.00015999,2]
[405794934,1771315846468,-152.85835458,0.00016,2]
[405794935,1771315846479,-276.734435,0.00016,2]
[405794936,1771315846489,-7910.59,0.00016116,2]
[405794937,1771315846501,-152.85835458,0.000162,2]
[405794938,1771315846511,-774.5,0.00016438,2]
[405794939,1771315846520,-5300.13656815,0.00016551,2]
[405794940,1771315846529,-12649.0,0.00016629,2]
[405794941,1771315846539,-501.0,0.00017,2]
[405794942,1771315846548,-173.57638878,0.00017,7]
[405794943,1771315846557,-193.0,0.00017,2]
[405794944,1771315846567,-391.49,0.00017432,2]
[405794945,1771315846578,-1042.53651657,0.0001764,2]
[405794946,1771315846588,-1094.06288418,0.0001764,2]
[405794947,1771315846597,-1021.51210896,0.0001764,2]
[405794948,1771315846607,-1063.34298495,0.0001764,2]
[405794949,1771315846616,-1140.90891064,0.0001764,2]
[405794950,1771315846626,-1041.50917649,0.0001764,2]
[405794951,1771315846635,-1090.53514902,0.0001764,2]
[405794952,1771315846644,-1083.4367206,0.0001764,2]
[405794953,1771315846653,-1106.4158802,0.0001764,2]
[405794954,1771315846662,-1146.32598142,0.0001764,2]
[405794955,1771315846671,-1128.51603312,0.0001764,2]
[405794956,1771315846680,-1082.37670024,0.0001764,2]
[405794957,1771315846690,-1981.66370181,0.0001764,2]
[405794958,1771315846699,-1096.16806496,0.0001764,2]
[405794959,1771315846708,-1101.90189839,0.0001764,2]
[405794960,1771315846717,-1037.86579739,0.0001764,2]
[405794961,1771315846727,-1042.53717122,0.0001764,2]
[405794962,1771315846736,-1058.24020247,0.0001764,2]
[405794963,1771315846745,-1109.97955819,0.0001764,2]
[405794964,1771315846756,-1037.12603143,0.0001764,2]
[405794965,1771315846766,-1331.60461973,0.0001764,2]
[405794966,1771315846776,-501.0,0.00017649,2]
[405794967,1771315846786,-1139.19827536,0.00017686,2]
[405794968,1771315846795,-444.64,0.00017808,2]
[405794969,1771315846804,-500.0,0.00017808,2]
[405794970,1771315846814,-500.0,0.00017808,2]
[405794971,1771315846824,-500.0,0.00017808,2]
[405794972,1771315846834,-500.0,0.00017808,2]
[405794973,1771315846843,-500.0,0.00017808,2]
[405794974,1771315846853,-500.0,0.00017808,2]
[405794975,1771315846862,-500.0,0.00017808,2]
[405794976,1771315846872,-595.71508911,0.00017808,2]
[405794977,1771315846881,-300.0,0.00017808,2]
[405794978,1771315846891,-800.0,0.00017808,2]
[405794979,1771315846900,-250.0,0.00017808,20]
[405794980,1771315846910,-250.0,0.00017808,20]
[405794981,1771315846920,-250.0,0.00017808,20]
[405794982,1771315846929,-250.0,0.00017808,20]